bitfinex-derivatives/quotes_BTCF0:USTF0_20260107
["timestamp","ask_amount","ask_price","bid_price","bid_amount"]
[1767794517947,0.010878,91991.0,91968.0,0.010881]
[1767794518137,0.09248,91990.0,91968.0,0.010881]
[1767794518846,0.09248,91989.0,91970.0,0.010881]
[1767794519036,0.09064695,91988.0,91970.0,0.010881]
[1767794519243,0.09064695,91988.0,91971.0,0.010881]
[1767794519439,0.010875,92020.0,91962.0,0.09248]
[1767794519440,0.09064695,92000.0,91977.0,0.02189109]
[1767794519644,0.09064695,92006.0,91984.0,0.02189109]
[1767794519854,0.10152395,92006.0,91981.0,0.010879]
[1767794520051,0.09064695,92006.0,91983.0,0.010879]
[1767794520245,0.09064695,92006.0,91984.0,0.02436705]
[1767794520451,0.09248,92005.0,91991.0,0.010878]
[1767794520747,0.09064695,92006.0,91992.0,0.010878]
[1767794520940,0.09878898,92011.0,91994.0,0.010878]
[1767794521140,0.09878898,92011.0,91990.0,0.12772505]
[1767794521340,0.09878898,92011.0,91991.0,0.02436705]
[1767794521540,0.09878898,92011.0,91983.0,0.010879]
[1767794521746,0.09625541,92002.0,91984.0,0.09248]
[1767794521947,0.09549895,92000.0,91985.0,0.09248]
[1767794522654,0.09549895,92000.0,91984.0,0.09248]
[1767794522852,0.09549895,91998.0,91984.0,0.09248]
[1767794523446,0.09248,92013.0,91984.0,0.09248]
[1767794523447,0.09549895,91994.0,91984.0,0.09248]
[1767794523744,0.09549895,91994.0,91969.0,0.10264367]
[1767794523745,0.09549895,91989.0,91967.0,0.09248]
[1767794523951,0.09549895,91989.0,91967.0,0.103361]
[1767794524149,0.09549895,91989.0,91969.0,0.010881]
[1767794524647,0.09549895,91998.0,91974.0,0.01088]
[1767794524851,0.09248,91997.0,91973.0,0.12932602]
[1767794525051,0.09549895,91996.0,91973.0,0.11844602]
[1767794525252,0.00285303,91995.0,91973.0,0.11844602]
[1767794525448,0.00285303,91983.0,91967.0,0.09248]
[1767794525656,0.09835198,91979.0,91965.0,0.09248]
[1767794525849,0.00285303,91978.0,91965.0,0.09248]
[1767794526051,0.09549895,91986.0,91968.0,0.010881]
[1767794526553,0.00257838,91985.0,91968.0,0.010881]
[1767794527056,0.09807733,91984.0,91968.0,0.010881]
[1767794527357,0.09549895,91984.0,91968.0,0.010881]
[1767794527652,0.00228934,91988.0,91965.0,0.11916335]
[1767794527853,0.09549895,91990.0,91973.0,0.01088]
[1767794528053,0.09549895,91990.0,91969.0,0.11844602]
[1767794528659,0.09757637,91995.0,91976.0,0.01088]
[1767794528845,0.09248,91994.0,91976.0,0.01088]
[1767794529043,0.09248,91994.0,91978.0,0.01088]
[1767794529344,0.09248,91994.0,91980.0,0.01088]
[1767794530353,0.00344041,92000.0,91980.0,0.01088]
[1767794530557,0.00344041,91999.0,91980.0,0.01088]
[1767794530757,0.19141936,91999.0,91980.0,0.01088]
[1767794530949,0.00344041,91998.0,91980.0,0.01088]
[1767794531147,0.00344041,91998.0,91977.0,0.09248]
[1767794531148,0.09864746,91993.0,91977.0,0.09248]
[1767794531346,0.09864746,91995.0,91977.0,0.09248]
[1767794531547,0.09549895,91993.0,91977.0,0.09248]
[1767794531855,0.00314851,91994.0,91977.0,0.09248]
[1767794532357,0.00314851,91994.0,91977.0,0.10336]
[1767794533841,0.00314851,91994.0,91977.0,0.09248]
[1767794534245,0.0027492,91986.0,91971.0,0.010881]
[1767794534447,0.0027492,91983.0,91968.0,0.010881]
[1767794534655,0.0027492,91983.0,91969.0,0.09248]
[1767794534962,0.0027492,91983.0,91970.0,0.09248]
[1767794535152,0.00245959,91980.0,91962.0,0.010882]
[1767794535357,0.00245959,91980.0,91961.0,0.09176267]
[1767794535358,0.00245959,91975.0,91960.0,0.09248]
[1767794535750,0.00245959,91980.0,91961.0,0.010882]
[1767794535960,0.00245959,91979.0,91961.0,0.010882]
[1767794536161,0.09549895,91980.0,91961.0,0.010882]
[1767794536368,0.09642096,91976.0,91958.0,0.010882]
[1767794536562,0.09642096,91975.0,91959.0,0.09248]
[1767794536767,0.00092201,91972.0,91959.0,0.09248]
[1767794537064,0.00092201,91972.0,91958.0,0.09248]
[1767794537556,0.00063848,91969.0,91954.0,0.09248]
[1767794538051,0.00063848,91972.0,91954.0,0.09248]
[1767794538455,0.10637995,91970.0,91954.0,0.0921241]
[1767794538758,0.10637995,91970.0,91949.0,0.00217513]
[1767794539065,0.09549895,91968.0,91949.0,0.00217513]
[1767794539360,0.09549895,91963.0,91949.0,0.00217513]
[1767794539556,0.010882,91958.0,91934.0,0.010885]
[1767794539762,0.10638195,91955.0,91938.0,0.09248]
[1767794539958,0.09549895,91955.0,91938.0,0.09248]
[1767794540362,0.18797895,91967.0,91944.0,0.11844602]
[1767794540656,0.09248,91966.0,91946.0,0.02668335]
[1767794540855,0.09248,91966.0,91946.0,0.11844602]
[1767794541055,0.09248,91966.0,91940.0,0.010884]
[1767794541056,0.09549895,91965.0,91942.0,0.02668335]
[1767794541359,0.09549895,91965.0,91940.0,0.09176267]
[1767794541360,0.09549895,91965.0,91940.0,0.09248]
[1767794541563,0.09549895,91962.0,91940.0,0.09248]
[1767794541862,0.09549895,91962.0,91936.0,0.010885]
[1767794542046,0.09549895,91954.0,91934.0,0.09252]
[1767794542248,0.09549895,91954.0,91931.0,0.11844602]
[1767794542461,0.09549895,91954.0,91932.0,0.010885]
[1767794543052,0.09549895,91954.0,91932.0,0.11844602]
[1767794543251,0.09549895,91954.0,91929.0,0.09252]
[1767794543455,0.09549895,91948.0,91921.0,0.1804]
[1767794543661,0.09549895,91940.0,91918.0,0.010887]
[1767794543859,0.09549895,91940.0,91916.0,0.03488312]
[1767794545465,0.09252,91942.0,91916.0,0.03488312]
[1767794545466,0.09252,91942.0,91921.0,0.02668335]
[1767794545658,0.09252,91942.0,91920.0,0.09176267]
[1767794545659,0.18801895,91942.0,91920.0,0.09176267]
[1767794545860,0.09549895,91941.0,91916.0,0.03488312]
[1767794546254,0.09549895,91941.0,91916.0,0.12664579]
[1767794546458,0.10638295,91940.0,91916.0,0.03488312]
[1767794547155,0.09549895,91940.0,91916.0,0.06156647]
[1767794547355,0.09549895,91938.0,91916.0,0.03488312]
[1767794547665,0.09549895,91936.0,91916.0,0.03488312]
[1767794548160,0.09549895,91934.0,91916.0,0.03488312]
[1767794548362,0.09549895,91934.0,91919.0,8.4e-07]
[1767794548564,0.10638595,91919.0,91891.0,0.1804]
[1767794548762,0.09549895,91915.0,91890.0,0.09176267]
[1767794549060,0.09549895,91913.0,91890.0,0.09176267]
[1767794549462,0.09549895,91913.0,91885.0,0.13009435]
[1767794549760,0.00011727,91912.0,91891.0,0.03757335]
[1767794549969,0.010886,91926.0,91903.0,0.09176267]
[1767794550152,0.103406,91925.0,91903.0,0.09176267]
[1767794550353,0.09744,91939.0,91900.0,0.09176267]
[1767794550354,0.0084357,91922.0,91900.0,0.09176267]
[1767794550565,0.09549895,91923.0,91901.0,0.02668335]
[1767794550960,0.10393465,91923.0,91901.0,0.02668335]
[1767794551157,0.10393465,91923.0,91898.0,0.11844602]
[1767794551356,0.10344871,91928.0,91902.0,0.11844602]
[1767794551557,0.09252,91927.0,91903.0,0.09176267]
[1767794552064,0.00764167,91926.0,91903.0,0.09176267]
[1767794552262,0.010886,91923.0,91900.0,0.11864858]
[1767794552764,0.0962869,91924.0,91900.0,0.11864858]
[1767794553367,0.10452169,91916.0,91897.0,0.09252]
[1767794553567,0.10452169,91916.0,91898.0,0.010889]
[1767794553767,0.00823479,91926.0,91902.0,0.09177836]
[1767794553965,0.00823479,91926.0,91897.0,0.09252]
[1767794553966,0.09252,91925.0,91908.0,0.09177836]
[1767794554174,0.09252,91926.0,91910.0,0.09177836]
[1767794554469,0.00792575,91939.0,91915.0,0.11864858]
[1767794554665,0.01880975,91939.0,91916.0,0.09177836]
[1767794554873,0.09256,91938.0,91916.0,0.09177836]
[1767794555063,0.10048575,91938.0,91916.0,0.09177836]
[1767794555362,0.0907734,91924.0,91900.0,0.09177836]
[1767794555569,0.17765486,91940.0,91900.0,0.09177836]
[1767794555570,0.0798874,91936.0,91911.0,0.09177836]
[1767794555769,0.010885,91935.0,91911.0,0.09177836]
[1767794556070,0.010885,91935.0,91908.0,0.02687022]
[1767794556071,0.0798874,91927.0,91904.0,0.09177836]
[1767794556373,0.010887,91918.0,91904.0,0.09256]
[1767794556569,0.010887,91916.0,91904.0,0.09256]
[1767794556869,0.010887,91917.0,91904.0,0.09256]
[1767794557171,0.00208356,91915.0,91889.0,0.10484491]
[1767794557366,0.01297056,91915.0,91891.0,0.09177836]
[1767794557964,0.010888,91912.0,91891.0,0.09177836]
[1767794558268,0.00177114,91919.0,91892.0,0.02687022]
[1767794558466,0.00177114,91919.0,91889.0,0.00217655]
[1767794558467,0.010887,91919.0,91898.0,0.09177836]
[1767794558672,0.103447,91919.0,91898.0,0.09177836]
[1767794558973,0.09256,91923.0,91905.0,0.09177836]
[1767794559158,0.09256,91923.0,91906.0,0.09177836]
[1767794559472,0.010887,91922.0,91906.0,0.09172836]
[1767794559666,0.09256,91923.0,91900.0,0.02687022]
[1767794559970,0.010887,91917.0,91897.0,0.09256]
[1767794560172,0.010887,91920.0,91897.0,0.09256]
[1767794560471,0.00357881,91922.0,91898.0,0.010889]
[1767794560666,0.010886,91922.0,91900.0,0.02687022]
[1767794560868,0.31141016,92026.0,91900.0,0.02687022]
[1767794560869,0.00326142,91933.0,91909.0,0.02687022]
[1767794561070,0.010885,91934.0,91911.0,0.02687022]
[1767794561372,0.010885,91932.0,91912.0,0.09177836]
[1767794561568,0.09256,91933.0,91912.0,0.09177836]
[1767794561769,0.010884,91942.0,91918.0,0.11864858]
[1767794561974,0.00256895,91940.0,91919.0,0.09177836]
[1767794562159,0.00256895,91938.0,91919.0,0.09177836]
[1767794562364,0.010885,91933.0,91919.0,0.09177836]
[1767794562675,0.17368749,91941.0,91912.0,0.09177836]
[1767794562676,0.08338241,91935.0,91912.0,0.09177836]
[1767794562871,0.00225492,91934.0,91912.0,0.09177836]
[1767794563274,0.010886,91924.0,91907.0,0.09256]
[1767794563473,0.010887,91922.0,91907.0,0.09256]
[1767794563772,0.0017781,91929.0,91907.0,0.09256]
[1767794564178,0.0017781,91929.0,91904.0,0.09177836]
[1767794564476,0.010887,91916.0,91901.0,0.09256]
[1767794564666,0.010887,91919.0,91901.0,0.09256]
[1767794565170,0.00239354,91937.0,91913.0,0.02687022]
[1767794565369,0.09256,91936.0,91914.0,0.09177836]
[1767794565674,0.09256,91935.0,91917.0,0.10266536]
[1767794566172,0.09256,91935.0,91917.0,0.09177836]
[1767794566475,0.010885,91931.0,91917.0,0.09177836]
[1767794566878,0.010885,91934.0,91917.0,0.09177836]
[1767794567270,0.010885,91934.0,91912.0,0.010888]
[1767794567271,0.09408542,91935.0,91912.0,0.09177836]
[1767794567466,0.010886,91930.0,91914.0,0.09177836]
[1767794567662,0.00152542,91934.0,91914.0,0.09177836]
[1767794567866,0.010886,91927.0,91914.0,0.09177836]
[1767794568277,0.09256,91935.0,91914.0,0.09177836]
[1767794568278,0.010885,91933.0,91914.0,0.09177836]
[1767794568463,0.010885,91933.0,91915.0,0.09177836]
[1767794568664,0.09256,91935.0,91917.0,0.09177836]
[1767794568873,0.010885,91936.0,91917.0,0.09177836]
[1767794569071,0.103445,91936.0,91917.0,0.09177836]
[1767794569276,0.010885,91934.0,91917.0,0.09177836]
[1767794569474,0.0009391,91935.0,91912.0,0.09256]
[1767794569776,0.010886,91926.0,91912.0,0.09256]
[1767794569977,0.010886,91924.0,91911.0,0.09177836]
[1767794570281,0.010886,91924.0,91911.0,0.18433836]
[1767794570477,0.010886,91922.0,91911.0,0.18433836]
[1767794570878,0.010886,91925.0,91911.0,0.18433836]
[1767794571180,0.010886,91923.0,91912.0,0.09177836]
[1767794571570,0.0009391,91934.0,91912.0,0.09177836]
[1767794571770,0.010884,91943.0,91932.0,0.09177836]
[1767794571970,0.010884,91943.0,91932.0,0.18433836]
[1767794572278,0.010884,91941.0,91926.0,0.09177836]
[1767794572669,0.010884,91939.0,91926.0,0.09177836]
[1767794572874,0.010884,91939.0,91927.0,0.09256]
[1767794573074,0.00227002,91944.0,91927.0,0.09256]
[1767794573471,0.00227002,91944.0,91926.0,0.09177836]
[1767794573675,0.00227002,91944.0,91927.0,0.09256]
[1767794573886,0.0042702,91933.0,91913.0,0.09177836]
[1767794574078,0.0042702,91932.0,91907.0,0.09177836]
[1767794574277,0.010887,91915.0,91904.0,0.09251]
[1767794574486,0.0039505,91912.0,91890.0,0.09177836]
[1767794574671,0.0148385,91905.0,91884.0,0.09177836]
[1767794574975,0.0039505,91904.0,91861.0,0.1804]
[1767794575176,0.18041738,91880.0,91852.0,0.09256]
[1767794575480,0.00058526,91867.0,91839.0,0.09185621]
[1767794575680,0.00058526,91870.0,91840.0,0.02687022]
[1767794575873,0.17502612,91872.0,91852.0,0.09177836]
[1767794575874,0.09256,91872.0,91852.0,0.09177836]
[1767794576073,0.010891,91883.0,91853.0,0.09177836]
[1767794576074,0.08246612,91879.0,91853.0,0.09177836]
[1767794576273,0.103451,91883.0,91839.0,0.09263785]
[1767794576274,0.09707845,91883.0,91856.0,0.11864858]
[1767794576476,0.09256,91883.0,91864.0,0.09177836]
[1767794577281,0.00445486,91877.0,91847.0,0.09177836]
[1767794577485,0.09256,91883.0,91861.0,0.09177836]
[1767794578181,0.09256,91883.0,91862.0,0.11864858]
[1767794578383,0.09256,91883.0,91863.0,0.09177836]
[1767794578884,0.00412731,91882.0,91857.0,0.09177836]
[1767794579275,0.09256,91893.0,91877.0,0.09177836]
[1767794579578,0.09256,91893.0,91871.0,0.09177836]
[1767794579786,0.09256,91893.0,91872.0,0.09177836]
[1767794579971,0.09256,91893.0,91877.0,0.09177836]
[1767794580180,0.07332988,91892.0,91875.0,0.09177836]
[1767794580381,0.07332988,91892.0,91840.0,0.02780362]
[1767794580382,0.09446143,91875.0,91840.0,0.02780362]
[1767794580677,0.010887,91915.0,91840.0,0.02780362]
[1767794580678,0.09446143,91882.0,91842.0,0.02780362]
[1767794580877,0.010891,91884.0,91844.0,0.02780362]
[1767794581079,0.10535243,91881.0,91844.0,0.02780362]
[1767794581271,0.09446143,91867.0,91843.0,0.09256]
[1767794581476,0.010893,91865.0,91835.0,0.12040362]
[1767794581774,0.0926,91866.0,91839.0,0.02788147]
[1767794581975,0.010892,91879.0,91839.0,0.02788147]
[1767794581976,0.0926,91865.0,91839.0,0.02788147]
[1767794582176,0.0926,91864.0,91839.0,0.02788147]
[1767794582382,0.0926,91864.0,91845.0,0.12708055]
[1767794582580,0.0926,91864.0,91847.0,0.0971848]
[1767794582780,0.0926,91864.0,91839.0,7.785e-05]
[1767794582979,0.0926,91864.0,91844.0,0.0971848]
[1767794583174,0.0926,91864.0,91840.0,0.0971848]
[1767794583486,0.103493,91864.0,91842.0,0.0971848]
[1767794583983,0.11053796,91857.0,91839.0,7.785e-05]
[1767794584181,0.010895,91851.0,91839.0,7.785e-05]
[1767794584381,0.19874627,91857.0,91833.0,0.02989575]
[1767794584582,0.09525227,91849.0,91826.0,0.02185852]
[1767794584884,0.09525227,91856.0,91819.0,0.103499]
[1767794585084,0.0926,91855.0,91830.0,0.17765486]
[1767794585382,7.785e-05,91854.0,91830.0,0.0926]
[1767794585882,7.785e-05,91854.0,91830.0,0.4926]
[1767794586292,7.785e-05,91854.0,91831.0,0.12708055]
[1767794586586,7.785e-05,91854.0,91832.0,0.12708055]
[1767794586896,7.785e-05,91854.0,91830.0,0.0926]
[1767794586897,7.785e-05,91854.0,91834.0,0.0971848]
[1767794587186,0.10614427,91872.0,91848.0,0.0971848]
[1767794587376,0.10614427,91872.0,91849.0,0.0971848]
[1767794587586,0.0926,91871.0,91855.0,0.0971848]
[1767794587785,0.0926,91870.0,91855.0,0.0971848]
[1767794588093,0.0926,91869.0,91847.0,0.0971848]
[1767794588291,0.0926,91868.0,91851.0,0.0971848]
[1767794588786,0.010893,91867.0,91851.0,0.0971848]
[1767794588983,0.010893,91867.0,91831.0,0.0926]
[1767794588984,0.125102,91852.0,91831.0,0.0926]
[1767794589287,0.0926,91853.0,91831.0,0.12708055]
[1767794589491,0.103495,91853.0,91834.0,0.02989575]
[1767794589693,0.010896,91838.0,91823.0,0.02989575]
[1767794589882,0.010896,91838.0,91801.0,0.010901]
[1767794589883,0.010896,91838.0,91816.0,0.02112575]
[1767794590186,0.09525227,91845.0,91824.0,0.00328]
[1767794590491,0.0926,91849.0,91824.0,0.4]
[1767794590690,0.0926,91851.0,91820.0,0.18855386]
[1767794590882,0.010895,91854.0,91820.0,0.18855386]
[1767794591082,0.0926,91853.0,91824.0,0.010898]
[1767794591589,0.0926,91853.0,91823.0,0.0971848]
[1767794592392,0.010894,91858.0,91839.0,0.12708055]
[1767794592694,0.0926,91856.0,91840.0,0.0971848]
[1767794592988,0.010894,91863.0,91840.0,0.0971348]
[1767794593195,0.0926,91862.0,91841.0,0.02989575]
[1767794593395,0.010893,91864.0,91841.0,0.02989575]
[1767794593597,0.0926,91861.0,91841.0,0.02989575]
[1767794593799,0.010893,91864.0,91841.0,0.02989575]
[1767794594093,0.0926,91863.0,91841.0,0.02989575]
[1767794594289,0.010894,91862.0,91841.0,0.02989575]
[1767794594885,0.010894,91862.0,91846.0,0.12708055]
[1767794595088,0.0926,91866.0,91851.0,0.0971848]
[1767794595400,0.010893,91866.0,91851.0,0.0971848]
[1767794595797,0.010894,91860.0,91842.0,0.0926]
[1767794596097,0.010893,91864.0,91845.0,0.02989575]
[1767794596404,0.010893,91868.0,91847.0,0.02989575]
[1767794596586,0.103533,91868.0,91852.0,0.12708055]
[1767794596782,0.010892,91872.0,91853.0,0.12708055]
[1767794596988,0.02984973,91880.0,91853.0,0.0971848]
[1767794596989,0.010893,91870.0,91853.0,0.0971848]
[1767794597294,0.010893,91866.0,91849.0,0.02989575]
[1767794597495,0.010893,91863.0,91846.0,0.0971848]
[1767794598593,0.010894,91856.0,91842.0,0.0926]
[1767794598803,0.010894,91856.0,91839.0,0.0971848]
[1767794599189,0.125102,91864.0,91839.0,0.0971848]
[1767794599190,0.010895,91851.0,91839.0,0.0971848]
[1767794599696,0.010894,91856.0,91839.0,0.0971848]
[1767794599895,0.010895,91853.0,91839.0,0.0971848]
[1767794600098,0.010895,91850.0,91832.0,0.0971848]
[1767794600290,0.010895,91847.0,91832.0,0.0971848]
[1767794600490,0.09525227,91854.0,91832.0,0.0971848]
[1767794600697,0.010896,91843.0,91825.0,0.09264]
[1767794601000,0.010895,91847.0,91829.0,0.0971848]
[1767794601200,0.010895,91851.0,91829.0,0.0971848]
[1767794601403,0.09264,91854.0,91841.0,0.0971848]
[1767794601902,0.010895,91853.0,91834.0,0.02989575]
[1767794602093,0.010895,91853.0,91835.0,0.0971848]
[1767794603106,0.010894,91857.0,91839.0,0.12708055]
[1767794603306,0.010895,91854.0,91841.0,0.0971848]
[1767794603797,0.010894,91858.0,91843.0,0.12708055]
[1767794604005,0.125102,91862.0,91841.0,0.02989575]
[1767794604206,0.010895,91851.0,91841.0,0.02989575]
[1767794604500,0.00871845,91851.0,91841.0,0.02989575]
[1767794604699,0.125102,91862.0,91841.0,0.02989575]
[1767794605204,0.010895,91852.0,91841.0,0.02989575]
[1767794606307,0.217742,91866.0,91841.0,0.12708055]
[1767794606505,0.010894,91855.0,91841.0,0.12708055]
[1767794607009,0.010894,91858.0,91842.0,0.0971848]
[1767794607209,0.0001633,91863.0,91843.0,0.010896]
[1767794607412,0.0001633,91863.0,91847.0,0.0971848]
[1767794607708,0.0001633,91863.0,91847.0,8e-07]
[1767794608014,0.010894,91859.0,91841.0,0.02989575]
[1767794608310,0.010894,91859.0,91839.0,0.02989575]
[1767794608521,0.010894,91862.0,91841.0,0.02989575]
[1767794609209,0.010894,91862.0,91842.0,0.02989575]
[1767794609714,0.010894,91859.0,91842.0,0.02989575]
[1767794610104,0.010894,91859.0,91842.0,0.12708055]
[1767794610306,0.010894,91859.0,91843.0,0.02989575]
[1767794610810,0.0110573,91863.0,91846.0,0.12708055]
[1767794611012,0.0001633,91863.0,91847.0,0.02989575]
[1767794611312,0.09264,91870.0,91856.0,0.02989575]
[1767794611511,0.010893,91866.0,91850.0,0.02989575]
[1767794612809,0.00871716,91866.0,91850.0,0.02989575]
[1767794613412,0.010893,91869.0,91852.0,0.03325364]
[1767794613916,0.09264,91870.0,91854.0,0.03325364]
[1767794614214,0.09031521,91861.0,91837.0,0.12589364]
[1767794614409,0.010894,91859.0,91838.0,0.03325364]
[1767794614605,0.010894,91857.0,91838.0,0.03325364]
[1767794614911,0.010894,91858.0,91838.0,0.04414964]
[1767794615117,0.010894,91858.0,91840.0,0.04414964]
[1767794615716,0.010894,91858.0,91840.0,0.03325364]
[1767794616103,0.010894,91856.0,91840.0,0.03325364]
[1767794617908,0.010894,91856.0,91840.0,0.1305881]
[1767794618114,0.010894,91856.0,91839.0,0.03325364]
[1767794618518,0.09031521,91861.0,91839.0,0.03325364]
[1767794618820,0.09031521,91860.0,91837.0,0.09264]
[1767794619219,0.09031521,91860.0,91841.0,0.0001633]
[1767794619519,0.010895,91851.0,91841.0,0.0001633]
[1767794619821,0.010894,91858.0,91841.0,0.0001633]
[1767794620118,0.0305074,91861.0,91850.0,0.03325364]
[1767794620119,0.010894,91861.0,91850.0,0.03325364]
[1767794620415,0.09264,91860.0,91850.0,0.03325364]
[1767794620601,0.010893,91864.0,91852.0,0.03325364]
[1767794620803,0.010893,91868.0,91853.0,0.03325364]
[1767794621003,0.09264,91870.0,91853.0,0.03325364]
[1767794621205,0.010893,91864.0,91848.0,0.03325364]
[1767794621410,0.010894,91862.0,91848.0,0.03325364]
[1767794621924,0.09031521,91869.0,91845.0,0.10822946]
[1767794621925,0.09031521,91869.0,91845.0,0.09733446]
[1767794622123,0.010894,91859.0,91845.0,0.09733446]
[1767794622319,0.010894,91859.0,91841.0,0.0001633]
[1767794622518,0.010894,91862.0,91841.0,0.0110593]
[1767794622823,0.12082261,91863.0,91841.0,0.0001633]
[1767794623020,0.010895,91852.0,91841.0,0.0001633]
[1767794623608,0.09031521,91850.0,91831.0,0.010897]
[1767794623817,0.09031521,91850.0,91823.0,0.12589364]
[1767794623818,0.0001633,91856.0,91833.0,0.010897]
[1767794624020,0.0928033,91856.0,91839.0,0.1305881]
[1767794624212,0.0001633,91856.0,91842.0,0.09733446]
[1767794624408,0.0001633,91856.0,91824.0,0.010898]
[1767794624409,0.010894,91862.0,91843.0,0.010896]
[1767794624619,0.010894,91862.0,91840.0,0.03325364]
[1767794624620,0.09031521,91862.0,91840.0,0.010896]
[1767794624821,0.010894,91861.0,91842.0,0.010896]
[1767794625217,0.010894,91861.0,91839.0,0.13678964]
[1767794625514,0.010892,91874.0,91839.0,0.13678964]
[1767794625515,0.09031521,91869.0,91840.0,0.03325364]
[1767794625723,0.010893,91865.0,91846.0,0.03325364]
[1767794625917,0.010893,91865.0,91846.0,0.04414864]
[1767794626118,0.05893846,91889.0,91852.0,0.03325364]
[1767794626119,0.010893,91868.0,91852.0,0.03325364]
[1767794626320,0.010893,91868.0,91854.0,0.03325364]
[1767794626718,0.0305074,91877.0,91854.0,0.03325364]
[1767794626923,0.09031521,91878.0,91855.0,0.03325364]
[1767794626924,0.010893,91871.0,91855.0,0.03325364]
[1767794627421,0.010893,91869.0,91850.0,0.03325364]
[1767794627616,0.010893,91869.0,91852.0,0.03325364]
[1767794627816,0.010891,91882.0,91856.0,0.03325364]
[1767794627817,0.09031521,91881.0,91856.0,0.03325364]
[1767794628016,0.09264,91880.0,91856.0,0.03325364]
[1767794628216,0.010892,91876.0,91856.0,0.03325364]
[1767794628422,0.18295521,91880.0,91855.0,0.09733446]
[1767794628423,0.09264,91875.0,91858.0,0.03325364]
[1767794628622,0.09264,91875.0,91859.0,0.0001633]
[1767794628820,0.010892,91875.0,91859.0,0.0001633]
[1767794629022,0.09264,91875.0,91859.0,0.0001633]
[1767794629320,0.010892,91878.0,91859.0,0.0001633]
[1767794629521,0.010892,91876.0,91859.0,0.0001633]
[1767794629724,0.09264,91877.0,91859.0,0.0001633]
[1767794629926,0.09031521,91892.0,91868.0,0.03325364]
[1767794630118,0.010891,91888.0,91868.0,0.03325364]
[1767794630425,0.09264,91887.0,91869.0,0.010893]
[1767794630626,0.103531,91887.0,91868.0,0.03325364]
[1767794630923,0.09031521,91891.0,91871.0,0.03325364]
[1767794631224,0.09031521,91891.0,91862.0,0.010894]
[1767794631225,0.09264,91895.0,91879.0,0.010891]
[1767794631435,0.09031521,91897.0,91881.0,0.010891]
[1767794631822,0.09264,91900.0,91881.0,0.010891]
[1767794632128,0.09264,91900.0,91878.0,0.04430894]
[1767794632422,0.10120321,91905.0,91883.0,0.04414464]
[1767794632626,0.09264,91904.0,91883.0,0.04414464]
[1767794632924,0.010888,91911.0,91888.0,0.03325364]
[1767794633229,0.09031521,91911.0,91889.0,0.03325364]
[1767794633424,0.09264,91913.0,91896.0,0.03325364]
[1767794633737,0.010886,91923.0,91898.0,0.04414264]
[1767794633941,0.010886,91923.0,91899.0,0.1305881]
[1767794634237,0.103526,91923.0,91901.0,0.03325364]
[1767794634422,0.09031521,91925.0,91904.0,0.03325364]
[1767794634818,0.10120121,91925.0,91904.0,0.03325364]
[1767794635721,0.09031521,91925.0,91904.0,0.03325364]
[1767794635928,0.09264,91926.0,91905.0,0.03325364]
[1767794636125,0.09264,91926.0,91906.0,0.03325364]
[1767794636427,0.09031521,91931.0,91907.0,0.0926]
[1767794636630,0.10120021,91931.0,91908.0,0.03325364]
[1767794636838,0.09031521,91930.0,91907.0,0.18993446]
[1767794637025,0.09031521,91926.0,91907.0,0.0926]
[1767794637219,0.09031521,91925.0,91907.0,0.0926]
[1767794637631,0.09031521,91918.0,91902.0,0.0926]
[1767794637821,0.09031521,91914.0,91896.0,0.0926]
[1767794638630,0.010885,91936.0,91896.0,0.0926]
[1767794638631,0.09031521,91922.0,91897.0,0.010889]
[1767794638831,0.0926,91921.0,91897.0,0.04414264]
[1767794639133,0.0926,91921.0,91899.0,0.010889]
[1767794639336,0.0926,91921.0,91899.0,0.03325364]
[1767794639525,0.13170961,91920.0,91896.0,0.0926]
[1767794639830,0.09031521,91917.0,91896.0,0.0926]
[1767794640732,0.0909642,91910.0,91886.0,0.010891]
[1767794640932,0.0909642,91910.0,91889.0,0.0298977]
[1767794641136,0.0909642,91910.0,91890.0,0.0926]
[1767794641430,0.0909642,91910.0,91891.0,0.01089]
[1767794641624,0.0909642,91916.0,91896.0,0.010889]
[1767794641826,0.0926,91921.0,91898.0,0.1281529]
[1767794642024,0.09876242,91930.0,91907.0,0.04068433]
[1767794642225,0.0926,91929.0,91907.0,0.04068433]
[1767794642431,0.010885,91933.0,91910.0,0.1390409]
[1767794642718,0.12828078,91926.0,91906.0,0.010888]
[1767794642923,0.09876242,91925.0,91903.0,0.103489]
[1767794643720,0.0926,91931.0,91906.0,0.02979633]
[1767794643925,0.19136242,91931.0,91911.0,0.010888]
[1767794644127,0.010885,91934.0,91911.0,0.1390409]
[1767794644434,0.103485,91934.0,91911.0,0.1390409]
[1767794644627,0.09876242,91933.0,91911.0,0.1281529]
[1767794644828,0.010885,91932.0,91911.0,0.1281529]
[1767794645135,0.09876242,91933.0,91911.0,0.09835657]
[1767794645338,0.09876242,91933.0,91910.0,0.010888]
[1767794645534,0.09876242,91933.0,91913.0,0.010887]
[1767794645735,0.10964742,91933.0,91908.0,0.04068433]
[1767794646041,0.010886,91930.0,91908.0,0.02979633]
[1767794646229,0.010886,91928.0,91908.0,0.02979633]
[1767794646432,0.10964842,91928.0,91905.0,0.00016321]
[1767794646928,0.010886,91926.0,91905.0,0.00016321]
[1767794647137,0.09876242,91928.0,91909.0,0.010888]
[1767794647329,0.09876242,91928.0,91906.0,0.010888]
[1767794647930,0.09876242,91928.0,91910.0,0.010888]
[1767794648328,0.010886,91930.0,91907.0,0.010888]
[1767794648534,0.010886,91928.0,91909.0,0.02979633]
[1767794648944,0.010885,91931.0,91910.0,0.09835657]
[1767794649231,0.10964842,91929.0,91908.0,0.010888]
[1767794649743,0.010885,91932.0,91912.0,0.02979633]
[1767794649945,0.02951836,91945.0,91921.0,0.02979633]
[1767794650144,0.010884,91941.0,91922.0,0.02979633]
[1767794650336,0.010885,91938.0,91921.0,0.09835657]
[1767794650843,0.010885,91936.0,91922.0,0.00016321]
[1767794651538,0.010884,91939.0,91922.0,0.00016321]
[1767794652344,0.13916578,91933.0,91922.0,0.00016321]
[1767794652530,0.09876242,91933.0,91922.0,0.00016321]
[1767794653039,0.010885,91937.0,91922.0,0.00016321]
[1767794653232,0.09876242,91936.0,91922.0,0.00016321]
[1767794653427,0.010885,91933.0,91922.0,0.00016321]
[1767794653632,0.09876242,91936.0,91922.0,0.00016321]
[1767794654739,0.010885,91935.0,91922.0,0.00016321]
[1767794654939,0.09876242,91936.0,91922.0,0.00016321]
[1767794657343,0.09876242,91942.0,91922.0,0.02995954]
[1767794657543,0.09876242,91941.0,91923.0,0.010886]